bitfinex-derivatives/quotes_ETHF0:USTF0_20250314
["timestamp","ask_amount","ask_price","bid_price","bid_amount"]
[1741969941304,4.20157008,1923.0,1922.5,1.04027]
[1741969941305,1.04019,1922.7,1922.5,1.04027]
[1741969941600,0.00780051,1922.8,1922.6,1.4139]
[1741969941794,1.04796051,1922.8,1922.6,1.4139]
[1741969941994,2.45188,1922.7,1922.6,1.4139]
[1741969942599,1.4117,1922.7,1922.6,1.4139]
[1741969943101,0.00780051,1922.8,1922.7,1.04018]
[1741969943698,1.03982,1923.4,1923.1,1.03993]
[1741969944002,1.03985,1923.3,1923.2,1.4139]
[1741969944198,1.03982,1923.4,1923.2,1.4139]
[1741969944397,1.3429,1923.4,1923.2,1.4139]
[1741969944600,1.03985,1923.3,1923.2,1.4139]
[1741969944803,2.38273,1923.4,1923.2,1.4139]
[1741969944997,3.21560051,1923.5,1923.3,1.03985]
[1741969945301,9.91100267,1923.4,1922.6,5.80839]
[1741969945598,1.04002,1923.0,1922.9,1.3755]
[1741969946398,1.04018,1922.7,1922.6,9.94]
[1741969946600,1.04018,1922.7,1922.6,5.998]
[1741969946996,1.04018,1922.7,1922.6,7.3735]
[1741969946997,2.38308,1922.7,1922.6,7.3735]
[1741969947197,2.38308,1922.7,1922.6,5.998]
[1741969948693,1.3429,1922.7,1922.6,7.4181]
[1741969948890,1.74551,1922.9,1922.6,7.4181]
[1741969949200,0.99602938,1923.2,1922.7,1.4201]
[1741969949402,3.92100051,1923.5,1923.1,1.03996]
[1741969949602,1.03988,1923.3,1923.1,1.4201]
[1741969949903,1.03988,1923.3,1923.1,2.46004]
[1741969950202,3.21560051,1923.5,1923.1,1.4201]
[1741969950393,3.21560051,1923.5,1923.2,5.9544]
[1741969950597,4.25535051,1923.5,1923.3,1.03983]
[1741969950803,4.25535051,1923.5,1923.4,1.3312]
[1741969951901,3.21560051,1923.5,1923.4,2.371]
[1741969952091,3.21560051,1923.5,1923.4,1.3312]
[1741969952291,3.21560051,1923.5,1923.4,2.371]
[1741969952292,0.00780051,1923.5,1923.4,2.371]
[1741969952697,1.04755051,1923.5,1923.4,1.3312]
[1741969952898,0.00780051,1923.5,1923.4,1.3312]
[1741969953100,1.04755051,1923.5,1923.4,2.371]
[1741969953399,0.00780051,1923.5,1923.4,2.371]
[1741969954203,2.59857,1924.1,1923.7,1.03962]
[1741969954410,1.03953,1923.9,1923.8,1.3657]
[1741969955409,2.50259051,1924.0,1923.8,2.40527]
[1741969955702,1.46310051,1924.0,1923.8,1.3657]
[1741969955909,2.50258051,1924.0,1923.9,1.3657]
[1741969956110,0.00780051,1924.0,1923.9,2.40523]
[1741969956305,0.00780051,1924.0,1923.9,8.40323]
[1741969956511,1.03923,1924.5,1924.3,1.03927]
[1741969956701,2.39915,1924.5,1924.2,1.03937]
[1741969956902,1.3599,1924.5,1924.3,1.0393]
[1741969957096,1.3599,1924.5,1924.2,1.3694]
[1741969957903,4.92766,1924.8,1924.2,7.1756]
[1741969958109,1.3599,1924.7,1924.6,1.03912]
[1741969958903,3.2078,1924.8,1924.7,1.0391]
[1741969959207,3.901,1925.4,1924.8,1.03899]
[1741969959208,1.3599,1925.0,1924.8,1.03899]
[1741969959516,1.3599,1925.0,1924.7,3.2078]
[1741969959809,1.3599,1925.0,1924.8,1.4207]
[1741969960107,4.92743,1925.2,1924.9,1.03899]
[1741969960409,1.03888,1925.1,1924.8,1.03903]
[1741969960603,2.45018,1925.1,1924.8,2.45973]
[1741969960804,2.45018,1925.1,1924.8,1.4207]
[1741969960999,2.45018,1925.1,1924.8,2.45971]
[1741969961211,1.4113,1925.1,1924.9,2.45969]
[1741969961408,1.4113,1925.1,1925.0,1.03894]
[1741969961608,3.2078,1925.2,1925.0,2.45963]
[1741969961811,3.2078,1925.2,1925.0,1.4207]
[1741969961812,4.24665,1925.2,1925.0,1.4207]
[1741969962116,1.03888,1925.1,1925.0,1.4207]
[1741969962411,2.46488,1925.1,1925.0,1.4207]
[1741969962614,1.426,1925.1,1925.0,1.4207]
[1741969962814,1.426,1925.1,1924.8,5.998]
[1741969963111,2.46493,1925.1,1924.8,8.45412]
[1741969963312,1.426,1925.1,1924.9,1.03898]
[1741969963526,2.46489,1925.1,1924.9,1.4171]
[1741969963703,1.426,1925.1,1925.0,1.03894]
[1741969964014,3.8772,1925.4,1924.9,1.4171]
[1741969964214,1.426,1925.3,1924.9,1.4171]
[1741969964517,1.426,1925.3,1925.2,1.03883]
[1741969964919,0.6958,1925.5,1925.3,1.03877]
[1741969965107,2.46473,1925.4,1925.2,1.4171]
[1741969965414,1.03877,1925.3,1925.2,1.4171]
[1741969965603,2.47307,1925.3,1925.2,1.4171]
[1741969965807,1.4343,1925.3,1925.0,4.9179]
[1741969966009,1.03884,1925.2,1925.0,6.24882]
[1741969966212,1.03886,1925.2,1925.0,5.2099]
[1741969966410,1.4343,1925.1,1925.0,6.24882]
[1741969966713,1.4343,1925.1,1924.8,7.03702]
[1741969966919,1.03896,1925.0,1924.8,12.24192]
[1741969967109,2.47321,1925.1,1924.8,12.2419]
[1741969967310,2.47321,1925.1,1924.9,1.3309]
[1741969967506,1.03894,1925.0,1924.8,9.872]
[1741969967705,3.2078,1925.0,1924.8,5.998]
[1741969967906,3.2078,1925.0,1924.7,0.00780051]
[1741969967907,1.03904,1924.8,1924.7,0.00780051]
[1741969968113,1.03904,1924.8,1924.5,28.832]
[1741969968114,1.03915,1924.6,1924.5,28.832]
[1741969968818,1.03926,1924.4,1924.3,5.998]
[1741969969007,1.3416,1924.5,1924.3,5.998]
[1741969969209,7.7905,1924.9,1924.4,1.03926]
[1741969969408,7.7905,1924.9,1924.3,5.998]
[1741969969409,0.00780051,1924.6,1924.5,2.39031]
[1741969971411,0.00780051,1924.6,1924.5,1.3511]
[1741969971616,0.00780051,1924.6,1924.5,2.39031]
[1741969973117,1.04695051,1924.6,1924.5,1.3511]
[1741969973319,2.47525051,1924.6,1924.5,1.3511]
[1741969973514,1.43610051,1924.6,1924.3,14.10009]
[1741969973715,1.03922,1924.5,1924.3,15.52829]
[1741969973909,2.47529051,1924.6,1924.4,2.46746]
[1741969974130,1.03921,1924.5,1924.4,1.4282]
[1741969974418,1.03921,1924.5,1924.2,0.00780051]
[1741969974419,4.6361,1924.5,1924.2,3.86080051]
[1741969974623,4.24711,1924.3,1924.2,0.00780051]
[1741969975123,1.03948,1924.0,1923.9,5.998]
[1741969975323,1.03953,1923.9,1923.8,30.2055]
[1741969975525,2.47703,1923.9,1923.8,28.823]
[1741969976519,1.03958,1923.8,1923.7,0.00780051]
[1741969976715,1.03984,1923.4,1923.3,1.3825]
[1741969977309,1.03984,1923.4,1922.9,2.60015]
[1741969977310,1.04003,1923.0,1922.8,0.6689]
[1741969977514,1.0402,1922.7,1922.5,1.04026]
[1741969977723,1.04021,1922.7,1922.5,1.04028]
[1741969977920,3.2078,1922.8,1922.5,1.04029]
[1741969977921,1.3951,1922.6,1922.5,1.04029]
[1741969978718,0.00780051,1922.8,1922.7,1.04018]
[1741969978915,3.2078,1923.2,1923.1,1.03996]
[1741969979113,3.871,1923.7,1923.1,1.03996]
[1741969979114,1.03982,1923.4,1923.1,1.03992]
[1741969979318,1.03982,1923.4,1923.2,1.4137]
[1741969979519,1.3951,1923.3,1923.2,1.4137]
[1741969979822,1.3951,1923.3,1923.2,2.45361]
[1741969980022,1.3951,1923.3,1923.2,1.4137]
[1741969980226,1.3951,1923.3,1923.2,2.45361]
[1741969980817,1.3951,1923.3,1923.2,1.4137]
[1741969981222,0.00780051,1923.4,1923.2,1.4137]
[1741969981422,0.00780051,1923.4,1923.2,2.4536]
[1741969981622,1.38060051,1923.4,1923.2,2.4536]
[1741969981818,0.00780051,1923.4,1923.2,1.4137]
[1741969982124,0.00780051,1923.4,1923.3,10.24565]
[1741969982314,1.3728,1924.0,1923.3,9.8772]
[1741969982515,4.5806,1924.0,1923.8,1.03953]
[1741969982828,1.3728,1924.0,1923.5,7.0698]
[1741969983017,2.41229,1924.0,1923.8,1.03955]
[1741969983218,1.03958,1923.8,1923.6,0.6917]
[1741969983417,3.2078,1923.9,1923.7,0.00780051]
[1741969983625,1.3736,1923.8,1923.7,1.04742051]
[1741969983819,1.3736,1923.8,1923.7,0.00780051]
[1741969984219,0.6983,1924.0,1923.7,0.00780051]
[1741969984423,1.3736,1924.0,1923.9,1.03953]
[1741969984618,3.21560051,1924.1,1923.7,7.45110051]
[1741969984820,3.21560051,1924.1,1923.7,10.65890051]
[1741969985123,1.03958,1923.8,1923.7,0.00780051]
[1741969985527,3.53958,1923.8,1923.7,0.00780051]
[1741969985729,4.5836,1923.8,1923.2,1.4453]
[1741969986031,3.2078,1923.6,1923.2,2.48517]
[1741969986218,1.03985,1923.3,1923.2,1.4453]
[1741969986418,1.03983,1923.4,1923.2,2.48521]
[1741969986615,1.3296,1923.3,1923.2,2.48521]
[1741969986828,4.24751,1923.6,1923.4,1.03977]
[1741969987018,1.3296,1923.6,1923.1,0.00780051]
[1741969987219,1.03982,1923.4,1923.2,2.44049]
[1741969987416,1.3296,1923.3,1923.2,1.4006]
[1741969987615,2.36945,1923.3,1923.2,1.4006]
[1741969987821,1.03991,1923.2,1922.8,5.998]
[1741969988119,1.03991,1923.2,1922.6,28.825]
[1741969988120,2.60008,1923.0,1922.6,28.825]
[1741969988320,4.5374,1922.9,1922.6,28.825]
[1741969988520,1.04023,1922.6,1922.5,1.4006]
[1741969988930,1.04036,1922.4,1922.2,4.24821]
[1741969989123,1.3296,1922.5,1922.4,1.04814051]
[1741969989324,3.21560051,1922.7,1922.5,1.04029]
[1741969989524,4.25578051,1922.7,1922.6,1.4006]
[1741969989724,5.68018051,1922.7,1922.6,1.4006]
[1741969990423,1.04029,1922.5,1922.4,0.00780051]
[1741969991018,4.24809,1922.5,1922.4,0.00780051]
[1741969991423,1.04029,1922.5,1922.4,0.00780051]
[1741969991633,0.7254,1922.6,1922.4,0.00780051]
[1741969991934,1.76567,1922.6,1922.4,1.43250051]
[1741969992633,2.46469,1922.5,1922.4,1.43250051]
[1741969993036,2.46469,1922.5,1922.4,0.00780051]
[1741969993534,6.52513,1922.5,1921.8,0.6972]
[1741969993828,1.04046,1922.2,1921.9,1.4579]
[1741969994041,1.04046,1922.2,1922.0,1.04051]
[1741969994330,1.3152,1922.3,1921.9,1.4579]
[1741969994731,1.04045,1922.2,1922.0,1.04054]
[1741969995033,1.04045,1922.2,1921.9,2.50628051]
[1741969995327,2.35563,1922.3,1921.9,1.46570051]
[1741969995521,1.3152,1922.3,1922.0,1.04056]
[1741969995726,1.3152,1922.3,1922.2,1.04045]
[1741969996034,1.3152,1922.3,1922.1,2.42986]
[1741969996220,1.3152,1922.3,1922.2,1.04045]
[1741969996422,3.2078,1922.4,1922.3,1.04039]
[1741969996628,1.4302,1922.5,1922.4,1.04034]
[1741969996830,3.21560051,1922.7,1922.5,1.04025]
[1741969997034,3.21560051,1922.7,1922.6,1.3894]
[1741969997629,0.00780051,1922.7,1922.6,2.42963]
[1741969997830,0.00780051,1922.7,1922.2,3.868]
[1741969998030,0.00780051,1922.7,1922.6,1.04023]
[1741969999029,0.00780051,1922.7,1922.5,6.29968]
[1741969999229,0.00780051,1922.7,1922.5,5.2594]
[1741969999531,1.04023,1922.6,1922.5,1.3894]
[1741970000036,3.2078,1922.6,1922.5,1.3894]
[1741970000232,3.2078,1922.6,1922.5,2.42969]
[1741970000933,1.04023,1922.6,1922.5,1.3894]
[1741970001335,4.60740051,1922.7,1922.3,4.6081]
[1741970001531,1.04025,1922.6,1922.4,2.44062]
[1741970001731,2.43205,1922.6,1922.4,1.4003]
[1741970001932,1.04029,1922.5,1922.4,1.4003]
[1741970002235,1.3918,1922.6,1922.4,1.4003]
[1741970002440,1.0403,1922.5,1922.1,32.0568]
[1741970002632,2.43204,1922.6,1922.4,1.0403]
[1741970002933,2.43204,1922.6,1922.5,1.3855]
[1741970003126,3.21560051,1922.7,1922.6,1.04023]
[1741970003331,0.00780051,1922.7,1922.6,1.04023]
[1741970003538,3.2078,1923.1,1922.6,10.24603]
[1741970003736,2.48149,1923.3,1923.1,1.03992]
[1741970003936,2.48149,1923.3,1923.1,1.3855]
[1741970003937,1.03992,1923.2,1923.1,1.3855]
[1741970004139,1.03992,1923.2,1922.9,3.863]
[1741970004140,1.04002,1923.0,1922.9,3.863]
[1741970004331,1.04002,1923.0,1922.9,4.90307]
[1741970004537,1.04002,1923.0,1922.9,3.863]
[1741970005037,2.42892,1923.0,1922.9,5.2672]
[1741970005439,1.3889,1923.0,1922.8,0.00780051]
[1741970005841,2.42894,1923.0,1922.9,1.04007]
[1741970006038,1.04007,1922.9,1922.8,0.00780051]
[1741970006340,1.3889,1922.9,1922.8,1.04792051]
[1741970006543,4.25558051,1923.1,1923.0,1.04002]
[1741970007334,1.04002,1923.0,1922.9,3.14293]
[1741970007546,2.42892,1923.0,1922.9,1.4042]
[1741970007935,1.04007,1922.9,1922.8,0.00780051]
[1741970008142,2.37347,1922.9,1922.8,0.00780051]
[1741970009840,3.21560051,1923.1,1922.8,0.00780051]
[1741970010036,1.04004,1923.0,1922.9,1.04006]
[1741970010339,2.37342,1923.0,1922.9,1.3623]
[1741970010542,1.3334,1923.0,1922.9,2.40237]
[1741970010742,4.25561051,1923.1,1923.0,1.04002]
[1741970010945,4.25561051,1923.1,1923.0,1.3774]
[1741970011540,13.07760051,1923.1,1922.0,3.2078]
[1741970011738,3.2078,1922.7,1921.9,3.2078]
[1741970011946,3.2078,1922.5,1922.1,0.65040537]
[1741970012237,3.2078,1922.5,1921.7,5.07624051]
[1741970012238,3.2078,1922.3,1921.6,3.2078]
[1741970012443,1.04054,1922.1,1921.4,5.07624051]
[1741970012638,1.3449,1922.0,1921.8,0.00780051]
[1741970012833,1.04841051,1921.9,1921.8,0.00780051]
[1741970013037,1.04068,1921.8,1921.4,1.04088]
[1741970013231,1.04077,1921.6,1921.3,3.2078]
[1741970013436,1.3449,1921.5,1921.2,28.849]
[1741970013641,1.3449,1921.5,1921.2,29.88996]
[1741970013841,1.3449,1921.5,1921.3,1.04093]
[1741970014041,1.3449,1921.5,1921.4,1.04088]
[1741970014443,1.3449,1921.5,1921.2,28.85680051]
[1741970014643,1.3449,1921.5,1921.3,2.40542]
[1741970014843,1.3449,1921.5,1921.4,1.3645]
[1741970015246,1.441,1921.7,1921.4,2.40533]
[1741970015646,1.441,1921.7,1921.4,1.3645]
[1741970015851,1.441,1921.7,1921.4,2.40535]
[1741970016252,1.441,1921.7,1921.4,1.3645]
[1741970016849,1.04086,1921.5,1921.2,28.85680051]
[1741970017039,1.4229,1921.4,1921.2,30.24860051]
[1741970017245,2.46378,1921.4,1921.2,28.85680051]
[1741970017752,2.46378,1921.4,1921.2,0.00780051]
[1741970017946,1.04094,1921.3,1921.2,0.00780051]
[1741970018147,2.46384,1921.3,1921.2,0.00780051]
[1741970019249,5.67164,1921.3,1921.2,0.00780051]
[1741970019550,1.4229,1921.3,1921.2,0.00780051]
[1741970020153,0.7249,1921.6,1921.2,0.00780051]
[1741970020457,1.4478,1921.5,1921.4,1.04088]
[1741970021058,3.2078,1921.7,1921.5,1.04079]
[1741970021255,4.6556,1921.7,1921.6,1.4195]
[1741970021556,1.4478,1921.7,1921.6,2.46027]
[1741970021761,3.21560051,1921.9,1921.6,2.46027]
[1741970021957,2.4885,1921.8,1921.4,7.0948]
[1741970022153,2.4885,1921.8,1921.4,5.3065]
[1741970022360,3.2078,1921.7,1921.4,6.34735]
[1741970022553,1.4478,1921.6,1921.3,5.07624051]
[1741970022759,2.48858,1921.6,1921.3,6.49574051]
[1741970023062,1.04084,1921.5,1921.3,5.07624051]
[1741970023262,1.4089,1921.4,1921.3,5.07624051]
[1741970023654,3.2078,1921.7,1921.3,5.07624051]
[1741970023855,1.4089,1921.6,1921.5,1.04083]
[1741970024662,4.25622051,1921.9,1921.6,1.04076]
[1741970024957,1.4089,1921.8,1921.4,1.3712]
[1741970025159,3.2078,1921.7,1921.4,1.3712]
[1741970025355,1.4089,1921.6,1921.5,1.04081]
[1741970025554,3.2078,1921.8,1921.7,1.04072]
[1741970025755,4.6167,1921.8,1921.7,1.04072]
[1741970025957,4.6167,1921.8,1921.6,1.04073]
[1741970026162,4.6167,1921.8,1921.6,1.3259]
[1741970026860,5.65738,1921.8,1921.6,1.3259]
[1741970027064,5.65738,1921.8,1921.6,2.36664]
[1741970027065,4.6167,1921.8,1921.6,2.36664]
[1741970027361,4.6167,1921.8,1921.5,0.7244]
[1741970027564,4.6167,1921.8,1921.4,8.4637]
[1741970027759,4.6167,1921.8,1921.7,1.04072]
[1741970028164,4.6167,1921.8,1921.6,1.04073]
[1741970028364,2.44957,1921.8,1921.6,1.04073]
[1741970028570,1.4089,1921.8,1921.4,8.4637]
[1741970028867,1.4089,1921.8,1921.7,1.04072]
[1741970029565,1.4089,1921.8,1921.4,8.4637]
[1741970029768,1.4089,1921.8,1921.7,1.04072]
[1741970030371,0.00780051,1921.9,1921.8,1.04067]
[1741970031162,1.3274,1922.4,1922.3,1.04039]
[1741970031463,1.421,1922.7,1922.2,3.2078]
[1741970031768,1.3274,1922.6,1922.3,1.3824]
[1741970031970,3.2078,1922.5,1922.1,9.01124051]
[1741970032154,2.48999,1922.4,1922.1,10.05170051]
[1741970032357,2.48997,1922.4,1922.2,1.04043]
[1741970032563,1.4496,1922.4,1922.1,10.43714102]
[1741970032766,2.48997,1922.4,1922.2,1.04043]
[1741970033368,1.04041,1922.3,1922.1,11.47760102]
[1741970033563,1.4496,1922.2,1922.1,11.47760102]
[1741970033769,3.21560051,1922.5,1922.1,11.47760102]
[1741970033770,3.21560051,1922.5,1922.2,1.4181]
[1741970033970,1.4496,1922.4,1922.3,1.04039]
[1741970034159,2.48994,1922.4,1922.2,2.45851]
[1741970034472,2.48995,1922.4,1922.2,1.04041]
[1741970034666,1.4496,1922.4,1922.2,1.4181]
[1741970034867,2.48995,1922.4,1922.2,2.45852]
[1741970035165,2.48999,1922.4,1922.2,1.4181]
[1741970035367,2.48999,1922.4,1922.2,2.45853]
[1741970035567,1.4496,1922.4,1922.3,1.04039]
[1741970036159,0.00780051,1922.5,1922.4,1.04034]
[1741970036760,0.00780051,1922.5,1922.3,6.11662051]
[1741970036964,3.2078,1922.4,1922.3,5.07624051]
[1741970037161,1.04045,1922.2,1922.1,0.00780051]
[1741970037361,4.24825,1922.2,1922.1,0.00780051]
[1741970037565,1.0405,1922.1,1921.9,5.07624051]
[1741970037769,2.38724,1922.1,1921.9,1.04061]
[1741970038072,1.04057,1922.0,1921.8,2.36402]
[1741970038364,1.4088,1921.9,1921.8,2.36402]
[1741970038871,1.69712,1922.3,1921.8,4.5312]
[1741970039172,2.44927,1922.2,1922.0,1.04054]
[1741970039359,1.4088,1922.2,1922.0,1.04054]
[1741970039564,2.44928,1922.2,1922.0,1.04054]
[1741970039765,1.4088,1922.2,1922.1,1.0405]
[1741970039960,1.4088,1922.2,1921.9,1.3138]
[1741970040169,1.04051,1922.1,1921.9,2.35438]
[1741970040366,0.6567,1922.3,1921.9,1.3138]
[1741970040567,1.4088,1922.3,1922.2,1.04041]
[1741970040761,1.74331051,1922.5,1922.0,11.56210051]
[1741970040967,2.11180051,1922.5,1922.0,5.07624051]
[1741970041270,1.04039,1922.3,1922.0,7.43056051]
[1741970041472,1.4277,1922.2,1922.0,6.39004051]
[1741970041767,1.0405,1922.1,1922.0,5.07624051]
[1741970042073,4.6355,1922.2,1921.8,4.24843]
[1741970042273,4.6355,1922.2,1921.8,4.6618]
[1741970042472,1.4277,1922.2,1922.1,1.0405]
[1741970042969,0.70300051,1922.5,1922.4,1.04034]
[1741970043168,0.00780051,1922.5,1922.4,8.23414]
[1741970043372,3.2078,1922.9,1922.5,2.60068]
[1741970043566,1.4277,1922.8,1922.7,1.04015]
[1741970043966,2.46783,1922.8,1922.6,2.49419]
[1741970044166,2.46784,1922.8,1922.6,2.4942]
[1741970044365,1.4277,1922.8,1922.6,1.454]
[1741970044674,2.46782,1922.8,1922.7,1.3701]
[1741970045072,2.46782,1922.8,1922.6,1.04022]
[1741970046470,1.04032,1922.5,1922.3,5.07624051]
[1741970046681,1.4143,1922.4,1922.3,2.41048]
[1741970047180,4.92939,1922.7,1922.5,1.04025]
[1741970047380,1.3433,1922.6,1922.5,1.04025]
[1741970048476,1.3433,1922.6,1922.5,1.04029]
[1741970048672,1.04031,1922.5,1922.3,1.04037]
[1741970048882,1.3433,1922.4,1922.3,1.04039]
[1741970049083,2.38366,1922.4,1922.2,29.90042]
[1741970049285,1.3433,1922.4,1922.3,1.04039]
[1741970050078,0.7228,1922.6,1922.2,28.86]
[1741970050284,1.3433,1922.6,1922.5,1.04029]
[1741970050482,0.00780051,1922.9,1922.6,1.04023]
[1741970050785,1.4315,1922.7,1922.6,1.04023]
[1741970051389,0.00780051,1922.9,1922.8,1.04012]
[1741970051687,1.04023,1922.6,1922.5,5.07624051]
[1741970052280,1.04039,1922.3,1922.2,28.86]
[1741970052483,1.04032,1922.5,1922.3,1.04038]
[1741970052789,1.4315,1922.4,1922.3,1.04038]
[1741970053189,2.47184,1922.4,1922.2,29.90041]
[1741970053385,1.4315,1922.4,1922.3,1.04039]
[1741970053687,3.2078,1922.7,1922.2,28.86]
[1741970053887,1.3764,1922.6,1922.2,33.93624051]
[1741970054090,1.0403,1922.5,1922.2,33.93624051]
[1741970054387,1.0403,1922.5,1922.3,1.04038]
[1741970054388,1.04032,1922.5,1922.3,1.04038]
[1741970054578,1.04025,1922.6,1922.4,1.04031]
[1741970054783,3.2078,1922.7,1922.6,1.04023]
[1741970055491,1.4142,1922.8,1922.7,1.04018]
[1741970055683,0.00780051,1922.9,1922.8,1.04012]
[1741970055993,7.18805,1923.3,1922.9,1.04005]
[1741970056189,1.03999,1923.1,1922.9,1.04005]
[1741970056393,7.18805,1923.3,1922.9,1.04007]
[1741970056690,1.0401,1922.9,1922.6,8.95154051]
[1741970056892,1.04014,1922.8,1922.7,1.04016]
[1741970057486,0.00780051,1922.9,1922.7,1.04016]
[1741970057682,1.04790051,1922.9,1922.6,3.88310051]
[1741970057890,1.04790051,1922.9,1922.7,1.04015]
[1741970058283,1.04790051,1922.9,1922.6,1.04801051]
[1741970058284,1.04012,1922.8,1922.6,1.04801051]
[1741970058496,1.04018,1922.7,1922.6,0.00780051]
[1741970058901,2.42547,1922.8,1922.6,1.04801051]
[1741970059198,3.21560051,1922.9,1922.6,0.00780051]
[1741970059498,1.04788051,1922.9,1922.6,0.00780051]
[1741970059797,1.04012,1922.8,1922.7,1.04014]
[1741970060097,1.04790051,1922.9,1922.7,1.04015]
[1741970060685,3.2078,1923.4,1922.8,3.927]
[1741970060889,5.974,1924.1,1923.1,5.80765]
[1741970060890,0.7069,1923.6,1923.1,5.80765]
[1741970061100,1.03975,1923.5,1923.3,1.03982]
[1741970061299,1.74664,1923.6,1923.4,1.03978]
[1741970061606,1.03982,1923.4,1923.2,1.03986]
[1741970061799,1.03991,1923.2,1923.1,3.932]
[1741970062400,1.74681,1923.2,1923.1,3.932]
[1741970062908,1.04,1923.1,1922.9,5.07624051]
[1741970063104,1.74684,1923.2,1923.0,1.03997]
[1741970063297,1.74684,1923.2,1923.1,1.03996]
[1741970063497,1.74684,1923.2,1922.8,6.52628]
[1741970063700,3.2078,1923.6,1923.2,1.03991]
[1741970064002,3.8889,1923.6,1923.1,5.80759]
[1741970064210,1.72081,1923.6,1923.5,1.03975]
[1741970064401,0.6811,1923.6,1923.3,1.0398]
[1741970064708,1.03983,1923.4,1923.3,1.03985]
[1741970065208,1.03983,1923.4,1923.2,2.126]
[1741970065209,1.03984,1923.4,1923.2,3.16588]
[1741970065409,1.4408,1923.3,1923.2,2.46591]
[1741970066002,2.48065,1923.3,1923.1,4.96093]
[1741970066198,1.03991,1923.2,1923.1,3.921]
[1741970066399,1.04002,1923.0,1922.9,1.4052]
[1741970067008,1.04018,1922.7,1922.6,1.04802051]
[1741970067311,1.04018,1922.7,1922.6,0.00780051]
[1741970067513,1.04018,1922.7,1922.6,1.04803051]
[1741970067810,1.04018,1922.7,1922.6,0.00780051]
[1741970068213,3.81028,1922.7,1922.6,0.00780051]
[1741970069306,2.7701,1922.7,1922.6,0.00780051]
[1741970069507,3.81028,1922.7,1922.6,0.00780051]
[1741970070914,1.04039,1922.3,1922.2,28.86]
[1741970071510,2.60086,1922.4,1921.9,6.42324051]
[1741970071703,1.3479,1922.2,1921.9,6.42324051]
[1741970071906,1.3479,1922.2,1921.8,3.2078]
[1741970071907,1.04061,1921.9,1921.8,3.2078]
[1741970072106,2.60146,1922.0,1921.6,1.4024]
[1741970072301,1.04077,1921.6,1921.5,29.8878]
[1741970072510,1.3479,1921.9,1921.6,0.00780051]
[1741970072712,1.04072,1921.7,1921.6,0.00780051]
[1741970072909,4.24852,1921.7,1921.6,0.00780051]
[1741970073112,4.24852,1921.7,1920.9,0.6674]
[1741970073113,15.6318,1921.7,1920.9,0.6674]
[1741970073411,3.2078,1921.4,1921.3,1.04094]
[1741970073607,0.658,1921.6,1921.5,1.04083]
[1741970073909,0.658,1921.6,1921.0,1.4024]
[1741970074215,0.00780051,1921.5,1921.4,3.2078]
[1741970074510,3.2078,1922.0,1921.5,2.60208]
[1741970074709,1.3273,1922.2,1922.0,1.04052]
[1741970074899,1.3273,1922.2,1921.8,3.2078]
[1741970074900,1.04031,1922.5,1921.8,7.1898]
[1741970075101,1.3273,1922.7,1922.4,1.04032]
[1741970075306,1.04032,1922.5,1922.3,1.4045]
[1741970075511,1.3273,1922.7,1922.3,4.6123]
[1741970075706,0.00780051,1922.6,1922.4,3.993]
[1741970075906,0.00780051,1922.6,1922.4,5.3975]
[1741970076413,1.04029,1922.5,1922.4,5.3975]
[1741970076618,2.36685051,1922.6,1922.4,5.3975]
[1741970076811,1.04029,1922.5,1922.4,5.3975]
[1741970077011,2.35909,1922.5,1922.4,5.3975]
[1741970077216,1.3188,1922.5,1922.4,5.3975]
[1741970077611,0.00780051,1922.6,1922.4,6.43782]
[1741970078120,1.45340051,1922.6,1922.5,1.04029]
[1741970078410,1.45340051,1922.6,1922.5,1.3718]
[1741970079205,4.66120051,1922.6,1922.2,5.08404102]
[1741970079403,1.3637,1922.5,1922.2,5.08404102]
[1741970079603,1.4456,1922.4,1922.3,3.2078]
[1741970079808,0.00780051,1922.6,1922.5,1.04029]
[1741970080212,0.00780051,1922.6,1922.5,2.41209]
[1741970080618,1.03997,1923.1,1922.5,4.5796]
[1741970080813,1.04004,1923.0,1922.7,1.04013]
[1741970081012,2.42518,1922.9,1922.8,1.3706]
[1741970081905,1.04014,1922.8,1922.6,2.0545]
[1741970082104,2.4253,1922.7,1922.4,1.04032]
[1741970082306,1.3851,1922.7,1922.3,6.0192]
[1741970082504,2.4253,1922.7,1922.4,2.41092]
[1741970082705,3.21560051,1923.0,1922.5,3.2078]
[1741970082911,1.3851,1922.9,1922.8,1.04012]
[1741970083312,1.3851,1922.9,1922.7,1.04016]
[1741970083508,0.00780051,1923.0,1922.7,4.5784]
[1741970083715,0.00780051,1923.0,1922.9,4.24787]
[1741970084019,0.00780051,1923.0,1922.9,5.65327]
[1741970084224,0.00780051,1923.0,1922.9,5.3874]
[1741970084520,1.04783051,1923.0,1922.6,5.6947]
[1741970084717,1.4108,1922.9,1922.7,1.4054]
[1741970085314,0.00780051,1923.0,1922.7,1.4054]
[1741970085912,0.00780051,1923.0,1922.9,1.04007]
[1741970086107,0.00780051,1923.0,1922.7,1.4054]
[1741970086317,1.41860051,1923.0,1922.7,1.4054]
[1741970086511,2.45862051,1923.0,1922.7,1.4054]
[1741970086711,1.41860051,1923.0,1922.7,1.4054]
[1741970087020,1.04012,1922.8,1922.7,1.4054]
[1741970087215,1.04012,1922.8,1922.6,3.984]
[1741970087422,1.4293,1922.7,1922.6,3.984]
[1741970089128,1.4293,1922.7,1922.5,1.3861]
[1741970089421,1.4293,1922.7,1922.2,0.00780051]
[1741970089422,4.6371,1922.7,1922.2,0.00780051]
[1741970089722,1.04039,1922.3,1922.2,0.00780051]
[1741970090518,2.46059,1922.3,1922.2,0.00780051]